lending/lending_fUSD_20240112
["ID","MTS","AMOUNT","RATE_DAILY","PERIOD"]
[311336141,1705063942596,-473.97392489,0.00027397,30]
[311336142,1705063942606,-1000.0,0.00027397,7]
[311336143,1705063942616,-1000.0,0.00027397,7]
[311336144,1705063942625,-1014.46561416,0.00027397,7]
[311336145,1705063942635,-2000.0,0.00027397,30]
[311336146,1705063942644,-2000.0,0.00027397,30]
[311336147,1705063942653,-2000.0,0.00027397,30]
[311336148,1705063942663,-2000.0,0.00027397,30]
[311336149,1705063942673,-2000.0,0.00027397,30]
[311336150,1705063942682,-2000.0,0.00027397,30]
[311336151,1705063942693,-433.84880384,0.00027397,30]
[311336152,1705063942703,-500.0,0.00027397,2]
[311336153,1705063942713,-500.0,0.00027397,2]
[311336154,1705063942723,-562.51701001,0.00027397,2]
[311336155,1705063942733,-1124.69742717,0.00027397,2]
[311336156,1705063942743,-155.0,0.00027397,2]
[311336157,1705063942752,-500.0,0.00027397,15]
[311336158,1705063942762,-500.0,0.00027397,15]
[311336159,1705063942772,-506.47353223,0.00027397,15]
[311336160,1705063942782,-250.0,0.00027397,2]
[311336161,1705063942794,-434.34,0.00027397,2]
[311336162,1705063942803,-4569.8908539,0.00027399,2]
[311336163,1705063942812,-5686.6266441,0.000274,2]
[311336164,1705063942822,-250.0,0.000274,2]
[311336165,1705063942832,-176.59,0.000274,2]
[311336166,1705063942842,-4223.75,0.00027456,2]
[311336167,1705063942852,-1122.89,0.00027456,2]
[311336168,1705063942861,-945.58,0.00027456,2]
[311336169,1705063942871,-620.52,0.00027456,2]
[311336170,1705063942880,-703.0,0.00027456,2]
[311336171,1705063942890,-1331.16,0.00027456,2]
[311336172,1705063942899,-3318.66,0.00027456,2]
[311336173,1705063942909,-500.0,0.00027489,2]
[311336174,1705063942918,-1074.41,0.00027523,2]
[311336175,1705063942928,-4313.59,0.00027523,5]
[311336176,1705063942937,-2141.96,0.00027523,2]
[311336177,1705063942947,-763.76,0.00027523,2]
[311336178,1705063942956,-13400.37,0.00027523,2]
[311336179,1705063942966,-4452.05,0.00027523,2]
[311336180,1705063942976,-500.0,0.00027523,2]
[311336181,1705063942986,-5995.38,0.00027523,2]
[311336182,1705063942996,-966.26,0.00027523,2]
[311336183,1705063943005,-660.56,0.00027523,2]
[311336184,1705063943015,-568.04,0.00027523,2]
[311336185,1705063943025,-1008.99,0.00027523,2]
[311336186,1705063943034,-615.37,0.00027523,2]
[311336187,1705063943045,-797.96,0.00027523,2]
[311336188,1705063943055,-1371.29,0.00027523,2]
[311336189,1705063943064,-686.32,0.00027523,2]
[311336190,1705063943074,-500.0,0.00027523,2]
[311336191,1705063943083,-3981.87,0.00027523,2]
[311336192,1705063943093,-584.53,0.00027523,2]
[311336193,1705063943103,-610.53,0.00027523,2]
[311336194,1705063943112,-766.02,0.00027523,2]
[311336195,1705063943121,-621.74,0.00027523,2]
[311336196,1705063943131,-2752.63,0.00027523,2]
[311336197,1705063943140,-1378.37,0.00027523,2]
[311336198,1705063943150,-922.86,0.00027523,2]
[311336199,1705063943160,-712.79,0.00027523,2]
[311336200,1705063943169,-624.87,0.00027523,2]
[311336201,1705063943178,-578.95739779,0.00027523,2]
[311336202,1705063943188,-500.0,0.00027523,2]
[311336203,1705063943198,-6331.44,0.00027523,2]
[311336204,1705063943211,-995.86,0.00027523,2]
[311336205,1705063943220,-652.82,0.00027523,2]
[311336206,1705063943230,-6343.23,0.00027523,2]
[311336207,1705063943239,-1936.38,0.00027523,2]
[311336208,1705063943249,-538.63,0.00027523,2]
[311336209,1705063943259,-530.12,0.00027523,2]
[311336210,1705063943268,-905.93,0.00027523,2]
[311336211,1705063943278,-500.0,0.00027523,2]
[311336212,1705063943287,-500.0,0.00027523,2]
[311336213,1705063943300,-1330.98,0.00027523,2]
[311336214,1705063943310,-584.23,0.00027523,2]
[311336215,1705063943321,-1834.87,0.00027523,2]
[311336216,1705063943332,-2275.08,0.00027523,2]
[311336217,1705063943342,-3572.07,0.00027523,2]
[311336218,1705063943352,-558.34,0.00027523,2]
[311336219,1705063943363,-1688.4,0.00027523,2]
[311336220,1705063943372,-1346.26,0.00027523,2]
[311336221,1705063943382,-1004.34,0.00027523,2]
[311336222,1705063943392,-598.68,0.00027523,2]
[311336223,1705063943401,-929.29,0.00027523,2]
[311336224,1705063943412,-1187.5,0.00027523,2]
[311336225,1705063943422,-937.32,0.00027523,2]
[311336226,1705063943431,-507.51,0.00027523,2]
[311336227,1705063943441,-753.23,0.00027523,2]
[311336228,1705063943451,-522.02,0.00027524,2]
[311336229,1705063943461,-235.81571906,0.00027524,2]
[311336230,1705063943471,-2353.43,0.00027524,2]
[311336231,1705063943482,-423.32273445,0.00027524,2]
[311336232,1705063943493,-762.84,0.00027524,2]
[311336233,1705063943504,-759.51,0.00027524,2]
[311336234,1705063943514,-500.0,0.00027524,2]
[311336235,1705063943524,-500.0,0.00027524,2]
[311336236,1705063943535,-500.0,0.00027524,2]
[311336237,1705063943552,-263.5242877,0.00027524,2]
[311336238,1705063943563,-538.07,0.00027524,2]
[311336239,1705063943574,-654.77,0.00027524,2]
[311336240,1705063943585,-500.0,0.00027524,2]
[311336241,1705063943596,-500.0,0.00027524,2]
[311336242,1705063943607,-2642.46,0.00027524,2]
[311336243,1705063943618,-367.70988377,0.00027524,2]
[311336244,1705063943629,-535.86,0.00027524,2]
[311336245,1705063943640,-950.9,0.00027524,2]
[311336246,1705063943650,-536.71,0.00027524,2]
[311336247,1705063943660,-247.84185912,0.00027524,2]
[311336248,1705063943671,-500.0,0.00027524,2]
[311336249,1705063943682,-500.0,0.00027524,2]
[311336250,1705063943692,-693.32,0.00027524,2]
[311336251,1705063943703,-568.04,0.00027524,2]
[311336252,1705063943712,-248.23330884,0.00027524,2]
[311336253,1705063943723,-500.0,0.00027524,2]
[311336254,1705063943733,-500.0,0.00027524,2]
[311336255,1705063943742,-500.0,0.00027524,2]
[311336256,1705063943752,-500.0,0.00027524,2]
[311336257,1705063943761,-603.25,0.00027524,2]
[311336258,1705063943771,-500.0,0.00027524,2]
[311336259,1705063943780,-500.0,0.00027524,2]
[311336260,1705063943794,-500.0,0.00027524,2]
[311336261,1705063943804,-500.0,0.00027524,2]
[311336262,1705063943813,-500.0,0.00027524,2]
[311336263,1705063943823,-500.0,0.00027524,2]
[311336264,1705063943833,-500.0,0.00027524,2]
[311336265,1705063943842,-819.21,0.00027524,2]
[311336266,1705063943852,-446.40810785,0.00027524,2]
[311336267,1705063943862,-625.04,0.00027524,2]
[311336268,1705063943872,-584.87,0.00027524,2]
[311336269,1705063943882,-500.0,0.00027524,2]
[311336270,1705063943892,-526.38,0.00027524,2]
[311336271,1705063943901,-550.56,0.00027524,2]
[311336272,1705063943911,-500.0,0.00027524,2]
[311336273,1705063943920,-500.0,0.00027524,2]
[311336274,1705063943930,-624.58,0.00027524,2]
[311336275,1705063943940,-534.74,0.00027524,2]
[311336276,1705063943950,-500.0,0.00027524,2]
[311336277,1705063943959,-745.45,0.00027524,2]
[311336278,1705063943969,-595.28,0.00027524,2]
[311336279,1705063943978,-526.79,0.00027524,2]
[311336280,1705063943987,-372.1969707,0.00027524,2]
[311336281,1705063943996,-627.56,0.00027524,2]
[311336282,1705063944006,-503.09,0.00027524,2]
[311336283,1705063944015,-318.69980585,0.00027524,2]
[311336284,1705063944025,-151.75,0.00027524,2]
[311336285,1705063944034,-604.12,0.00027524,2]
[311336286,1705063944048,-500.0,0.00027524,2]
[311336287,1705063944057,-807.85,0.00027524,2]
[311336288,1705063944067,-500.0,0.00027524,2]
[311336289,1705063944076,-500.0,0.00027524,2]
[311336290,1705063944085,-547.95,0.00027524,2]
[311336291,1705063944095,-579.89,0.00027524,2]
[311336292,1705063944104,-548.75,0.00027524,2]
[311336293,1705063944114,-1230.23,0.00027524,2]
[311336294,1705063944123,-1043.35,0.00027524,2]
[311336295,1705063944133,-537.69,0.00027524,2]
[311336296,1705063944142,-500.0,0.00027524,2]
[311336297,1705063944151,-3508.3,0.00027524,2]
[311336298,1705063944160,-619.56,0.00027524,2]
[311336299,1705063944170,-939.84,0.00027524,2]
[311336300,1705063944179,-2401.03,0.00027524,5]
[311336301,1705063944189,-500.0,0.00027524,2]
[311336302,1705063944201,-505.5,0.00027524,2]
[311336303,1705063944211,-1105.06,0.00027524,2]
[311336304,1705063944222,-522.95,0.00027524,2]
[311336305,1705063944231,-1354.24,0.00027524,2]
[311336306,1705063944241,-500.0,0.00027524,2]
[311336307,1705063944250,-1368.86,0.00027524,2]
[311336308,1705063944260,-772.0,0.00027524,2]
[311336309,1705063944269,-705.07,0.00027524,2]
[311336310,1705063944278,-1064.54,0.00027524,2]
[311336311,1705063944288,-660.22,0.00027524,2]
[311336312,1705063944300,-917.47,0.00027524,2]
[311336313,1705063944310,-608.43,0.00027524,2]
[311336314,1705063944319,-500.0,0.00027524,2]
[311336315,1705063944328,-1227.15,0.00027524,2]
[311336316,1705063944338,-500.0,0.00027524,2]
[311336317,1705063944349,-3542.34,0.00027524,2]
[311336318,1705063944358,-873.32,0.00027524,2]
[311336319,1705063944368,-2030.8,0.00027524,2]
[311336320,1705063944377,-804.67,0.00027524,2]
[311336321,1705063944387,-500.0,0.00027524,2]
[311336322,1705063944397,-751.35,0.00027524,2]
[311336323,1705063944406,-681.41,0.00027524,2]
[311336324,1705063944416,-550.77,0.00027524,2]
[311336325,1705063944425,-568.41,0.00027524,2]
[311336326,1705063944433,-1040.93,0.00027524,2]
[311336327,1705063944443,-353.76051442,0.00027524,2]
[311336328,1705063944452,-837.58,0.00027524,2]
[311336329,1705063944461,-1259.47,0.00027524,2]
[311336330,1705063944470,-500.0,0.00027524,2]
[311336331,1705063944480,-645.64,0.00027524,2]
[311336332,1705063944490,-528.46,0.00027524,2]
[311336333,1705063944499,-843.77,0.00027524,2]
[311336334,1705063944509,-500.0,0.00027524,2]
[311336335,1705063944518,-500.0,0.00027524,2]
[311336336,1705063944528,-500.0,0.00027524,2]
[311336337,1705063944537,-521.61,0.00027524,2]
[311336338,1705063944550,-431.11635567,0.00027524,2]
[311336339,1705063944560,-500.0,0.00027524,2]
[311336340,1705063944569,-625.33,0.00027524,2]
[311336341,1705063944579,-1634.05,0.00027524,2]
[311336342,1705063944591,-709.97,0.00027524,2]
[311336343,1705063944600,-835.12,0.00027524,2]
[311336344,1705063944610,-1018.72,0.00027524,2]
[311336345,1705063944619,-1257.65,0.00027524,2]
[311336346,1705063944628,-1312.63,0.00027524,2]
[311336347,1705063944637,-511.76,0.00027524,2]
[311336348,1705063944647,-500.0,0.00027524,2]
[311336349,1705063944656,-500.0,0.00027524,2]
[311336350,1705063944666,-539.08,0.00027524,2]
[311336351,1705063944675,-1320.71,0.00027524,2]
[311336352,1705063944685,-736.76,0.00027524,2]
[311336353,1705063944694,-969.0,0.00027524,2]
[311336354,1705063944704,-1026.07,0.00027524,2]
[311336355,1705063944714,-913.29,0.00027524,2]
[311336356,1705063944725,-721.94,0.00027524,2]
[311336357,1705063944735,-434.34,0.00027556,2]
[311336358,1705063944744,-542.9,0.00027649,2]
[311336359,1705063944754,-500.0,0.00027667,2]
[311336360,1705063944763,-310.00310685,0.000277,2]
[311336361,1705063944773,-434.34,0.00027714,2]
[311336362,1705063944783,-4223.75,0.0002773,2]
[311336363,1705063944795,-1122.89,0.0002773,2]
[311336364,1705063944805,-945.58,0.0002773,2]
[311336365,1705063944816,-620.52,0.0002773,2]
[311336366,1705063944825,-703.0,0.0002773,2]
[311336367,1705063944835,-1331.16,0.0002773,2]
[311336368,1705063944844,-3318.66,0.0002773,2]
[311336369,1705063944854,-2938.5806698,0.00027778,2]
[311336370,1705063944862,-83898.6048923,0.00027779,2]
[311336371,1705063944871,-1074.41,0.00027797,2]
[311336372,1705063944881,-4313.59,0.00027797,5]
[311336373,1705063944890,-2141.96,0.00027797,2]
[311336374,1705063944899,-763.76,0.00027797,2]
[311336375,1705063944909,-13400.37,0.00027797,2]
[311336376,1705063944919,-4452.05,0.00027797,2]
[311336377,1705063944928,-500.0,0.00027797,2]
[311336378,1705063944938,-5995.38,0.00027797,2]
[311336379,1705063944956,-966.26,0.00027797,2]
[311336380,1705063944968,-660.56,0.00027797,2]
[311336381,1705063944978,-568.04,0.00027797,2]
[311336382,1705063944987,-1008.99,0.00027797,2]
[311336383,1705063945001,-615.37,0.00027797,2]
[311336384,1705063945016,-797.96,0.00027797,2]
[311336385,1705063945030,-1371.29,0.00027797,2]
[311336386,1705063945046,-686.32,0.00027797,2]
[311336387,1705063945061,-450.56628779,0.00027797,2]
[311336388,1705063945075,-3981.87,0.00027797,2]
[311336389,1705063945087,-584.53,0.00027797,2]
[311336390,1705063945098,-610.53,0.00027797,2]
[311336391,1705063945110,-766.02,0.00027797,2]
[311336392,1705063945123,-621.74,0.00027797,2]
[311336393,1705063945136,-2752.63,0.00027797,2]
[311336394,1705063945148,-1378.37,0.00027797,2]
[311336395,1705063945161,-922.86,0.00027797,2]
[311336396,1705063945174,-712.79,0.00027797,2]
[311336397,1705063945186,-624.87,0.00027797,2]
[311336398,1705063945202,-500.0,0.00027797,2]
[311336399,1705063945215,-6331.44,0.00027797,2]
[311336400,1705063945228,-995.86,0.00027797,2]
[311336401,1705063945240,-652.82,0.00027797,2]
[311336402,1705063945250,-6343.23,0.00027797,2]
[311336403,1705063945261,-1936.38,0.00027797,2]
[311336404,1705063945273,-538.63,0.00027797,2]
[311336405,1705063945286,-530.12,0.00027797,2]
[311336406,1705063945302,-905.93,0.00027797,2]
[311336407,1705063945315,-151.38589769,0.00027797,2]
[311336408,1705063945326,-500.0,0.00027797,2]
[311336409,1705063945339,-1330.98,0.00027797,2]
[311336410,1705063945351,-584.23,0.00027797,2]
[311336411,1705063945363,-1834.87,0.00027797,2]
[311336412,1705063945375,-150.0,0.00027797,2]
[311336413,1705063945387,-2275.08,0.00027797,2]
[311336414,1705063945397,-3572.07,0.00027797,2]
[311336415,1705063945408,-558.34,0.00027797,2]
[311336416,1705063945419,-1688.4,0.00027797,2]
[311336417,1705063945433,-1346.26,0.00027797,2]
[311336418,1705063945445,-1004.34,0.00027797,2]
[311336419,1705063945457,-598.68,0.00027797,2]
[311336420,1705063945469,-929.29,0.00027797,2]
[311336421,1705063945483,-1187.5,0.00027797,2]
[311336422,1705063945495,-937.32,0.00027797,2]
[311336423,1705063945508,-507.51,0.00027797,2]
[311336424,1705063945519,-753.23,0.00027797,2]
[311336425,1705063945531,-522.02,0.00027798,2]
[311336426,1705063945543,-2353.43,0.00027798,2]
[311336427,1705063945557,-762.84,0.00027798,2]
[311336428,1705063945571,-759.51,0.00027798,2]
[311336429,1705063945583,-500.0,0.00027798,2]
[311336430,1705063945597,-500.0,0.00027798,2]
[311336431,1705063945609,-587.43367374,0.00027798,2]
[311336432,1705063945622,-538.07,0.00027798,2]
[311336433,1705063945634,-654.77,0.00027798,2]
[311336434,1705063945646,-500.0,0.00027798,2]
[311336435,1705063945658,-500.0,0.00027798,2]
[311336436,1705063945668,-2642.46,0.00027798,2]
[311336437,1705063945679,-535.86,0.00027798,2]
[311336438,1705063945689,-950.9,0.00027798,2]
[311336439,1705063945699,-536.71,0.00027798,2]
[311336440,1705063945710,-336.74434913,0.00027798,2]
[311336441,1705063945721,-500.0,0.00027798,2]
[311336442,1705063945732,-693.32,0.00027798,2]
[311336443,1705063945744,-568.04,0.00027798,2]
[311336444,1705063945755,-500.0,0.00027798,2]
[311336445,1705063945766,-500.0,0.00027798,2]
[311336446,1705063945777,-487.15842452,0.00027798,2]
[311336447,1705063945792,-500.0,0.00027798,2]
[311336448,1705063945807,-603.25,0.00027798,2]
[311336449,1705063945818,-500.0,0.00027798,2]
[311336450,1705063945828,-500.0,0.00027798,2]
[311336451,1705063945839,-500.0,0.00027798,2]
[311336452,1705063945849,-500.0,0.00027798,2]
[311336453,1705063945859,-500.0,0.00027798,2]
[311336454,1705063945873,-500.0,0.00027798,2]
[311336455,1705063945884,-500.0,0.00027798,2]
[311336456,1705063945895,-819.21,0.00027798,2]
[311336457,1705063945906,-625.04,0.00027798,2]
[311336458,1705063945918,-584.87,0.00027798,2]
[311336459,1705063945931,-597.39552053,0.00027798,2]
[311336460,1705063945943,-526.38,0.00027798,2]
[311336461,1705063945955,-550.56,0.00027798,2]
[311336462,1705063945968,-203.4129333,0.00027798,2]
[311336463,1705063945980,-500.0,0.00027798,2]
[311336464,1705063945991,-624.58,0.00027798,2]
[311336465,1705063946003,-534.74,0.00027798,2]
[311336466,1705063946014,-500.0,0.00027798,2]
[311336467,1705063946026,-745.45,0.00027798,2]
[311336468,1705063946037,-595.28,0.00027798,2]
[311336469,1705063946050,-526.79,0.00027798,2]
[311336470,1705063946062,-627.56,0.00027798,2]
[311336471,1705063946075,-503.09,0.00027798,2]
[311336472,1705063946086,-151.75,0.00027798,2]
[311336473,1705063946098,-604.12,0.00027798,2]
[311336474,1705063946109,-500.0,0.00027798,2]
[311336475,1705063946120,-807.85,0.00027798,2]
[311336476,1705063946132,-500.0,0.00027798,2]
[311336477,1705063946143,-314.58628064,0.00027798,2]
[311336478,1705063946154,-547.95,0.00027798,2]
[311336479,1705063946165,-579.89,0.00027798,2]
[311336480,1705063946176,-548.75,0.00027798,2]
[311336481,1705063946188,-1230.23,0.00027798,2]
[311336482,1705063946200,-1043.35,0.00027798,2]
[311336483,1705063946212,-537.69,0.00027798,2]
[311336484,1705063946223,-500.0,0.00027798,2]
[311336485,1705063946235,-3508.3,0.00027798,2]
[311336486,1705063946246,-619.56,0.00027798,2]
[311336487,1705063946257,-939.84,0.00027798,2]
[311336488,1705063946268,-2401.03,0.00027798,5]
[311336489,1705063946280,-500.0,0.00027798,2]
[311336490,1705063946291,-505.5,0.00027798,2]
[311336491,1705063946305,-1105.06,0.00027798,2]
[311336492,1705063946316,-522.95,0.00027798,2]
[311336493,1705063946327,-1354.24,0.00027798,2]
[311336494,1705063946339,-500.0,0.00027798,2]
[311336495,1705063946350,-1368.86,0.00027798,2]
[311336496,1705063946361,-772.0,0.00027798,2]
[311336497,1705063946372,-705.07,0.00027798,2]
[311336498,1705063946383,-1064.54,0.00027798,2]
[311336499,1705063946394,-660.22,0.00027798,2]
[311336500,1705063946404,-917.47,0.00027798,2]
[311336501,1705063946415,-608.43,0.00027798,2]
[311336502,1705063946426,-152.04411943,0.00027798,2]
[311336503,1705063946436,-1227.15,0.00027798,2]
[311336504,1705063946449,-500.0,0.00027798,2]
[311336505,1705063946460,-3542.34,0.00027798,2]
[311336506,1705063946471,-873.32,0.00027798,2]
[311336507,1705063946481,-2030.8,0.00027798,2]
[311336508,1705063946492,-804.67,0.00027798,2]
[311336509,1705063946503,-500.0,0.00027798,2]
[311336510,1705063946514,-751.35,0.00027798,2]
[311336511,1705063946524,-681.41,0.00027798,2]
[311336512,1705063946535,-550.77,0.00027798,2]
[311336513,1705063946546,-568.41,0.00027798,2]
[311336514,1705063946557,-1040.93,0.00027798,2]
[311336515,1705063946568,-837.58,0.00027798,2]
[311336516,1705063946579,-1259.47,0.00027798,2]
[311336517,1705063946589,-645.64,0.00027798,2]
[311336518,1705063946600,-500.0,0.00027798,2]
[311336519,1705063946612,-528.46,0.00027798,2]
[311336520,1705063946624,-843.77,0.00027798,2]
[311336521,1705063946635,-500.0,0.00027798,2]
[311336522,1705063946646,-500.0,0.00027798,2]
[311336523,1705063946657,-500.0,0.00027798,2]
[311336524,1705063946667,-521.61,0.00027798,2]
[311336525,1705063946678,-500.0,0.00027798,2]
[311336526,1705063946689,-625.33,0.00027798,2]
[311336527,1705063946700,-1634.05,0.00027798,2]
[311336528,1705063946711,-709.97,0.00027798,2]
[311336529,1705063946722,-835.12,0.00027798,2]
[311336530,1705063946733,-1018.72,0.00027798,2]
[311336531,1705063946744,-1257.65,0.00027798,2]
[311336532,1705063946754,-1312.63,0.00027798,2]
[311336533,1705063946766,-511.76,0.00027798,2]
[311336534,1705063946775,-205.22394715,0.00027798,2]
[311336535,1705063946787,-500.0,0.00027798,2]
[311336536,1705063946798,-1320.71,0.00027798,2]
[311336537,1705063946808,-539.08,0.00027798,2]
[311336538,1705063946819,-736.76,0.00027798,2]
[311336539,1705063946831,-969.0,0.00027798,2]
[311336540,1705063946842,-1026.07,0.00027798,2]
[311336541,1705063946853,-913.29,0.00027798,2]
[311336542,1705063946863,-721.94,0.00027798,2]
[311336543,1705063946874,-500.0,0.00027827,2]
[311336544,1705063946886,-434.34,0.00027872,2]
[311336545,1705063946897,-150.0,0.00027936,2]
[311336546,1705063946907,-150.0,0.00027936,2]
[311336547,1705063946918,-150.0,0.00027936,2]
[311336548,1705063946928,-150.0,0.00027936,2]
[311336549,1705063946939,-150.0,0.00027936,2]
[311336550,1705063946949,-150.0,0.00027936,2]
[311336551,1705063946960,-417.82,0.00027936,2]
[311336552,1705063946971,-150.0,0.00027936,2]
[311336553,1705063946982,-417.82,0.00027936,2]
[311336554,1705063946992,-150.0,0.00027936,2]
[311336555,1705063947003,-150.0,0.00027936,2]
[311336556,1705063947014,-417.82,0.00027936,2]
[311336557,1705063947025,-150.0,0.00027936,2]
[311336558,1705063947036,-462.90586429,0.00028,2]
[311336559,1705063947047,-202.68612241,0.00028,2]
[311336560,1705063947059,-165.67422842,0.00028,2]
[311336561,1705063947069,-4223.75,0.00028004,2]
[311336562,1705063947080,-1122.89,0.00028004,2]
[311336563,1705063947091,-945.58,0.00028004,2]
[311336564,1705063947102,-620.52,0.00028004,2]
[311336565,1705063947113,-703.0,0.00028004,2]
[311336566,1705063947124,-1331.16,0.00028004,2]
[311336567,1705063947134,-3318.66,0.00028004,2]
[311336568,1705063947145,-434.34,0.0002803,2]
[311336569,1705063947156,-1074.41,0.00028071,2]
[311336570,1705063947166,-4313.59,0.00028071,5]
[311336571,1705063947177,-2141.96,0.00028071,2]
[311336572,1705063947187,-763.76,0.00028071,2]
[311336573,1705063947198,-13400.37,0.00028071,2]
[311336574,1705063947209,-4452.05,0.00028071,2]
[311336575,1705063947219,-500.0,0.00028071,2]
[311336576,1705063947230,-5995.38,0.00028071,2]
[311336577,1705063947241,-966.26,0.00028071,2]
[311336578,1705063947251,-660.56,0.00028071,2]
[311336579,1705063947262,-568.04,0.00028071,2]
[311336580,1705063947273,-1008.99,0.00028071,2]
[311336581,1705063947284,-615.37,0.00028071,2]
[311336582,1705063947295,-797.96,0.00028071,2]
[311336583,1705063947307,-1371.29,0.00028071,2]
[311336584,1705063947318,-686.32,0.00028071,2]
[311336585,1705063947329,-3981.87,0.00028071,2]
[311336586,1705063947340,-584.53,0.00028071,2]
[311336587,1705063947351,-610.53,0.00028071,2]
[311336588,1705063947362,-766.02,0.00028071,2]
[311336589,1705063947373,-621.74,0.00028071,2]
[311336590,1705063947385,-2752.63,0.00028071,2]
[311336591,1705063947396,-1378.37,0.00028071,2]
[311336592,1705063947406,-922.86,0.00028071,2]
[311336593,1705063947418,-712.79,0.00028071,2]
[311336594,1705063947429,-624.87,0.00028071,2]
[311336595,1705063947440,-500.0,0.00028071,2]
[311336596,1705063947450,-6331.44,0.00028071,2]
[311336597,1705063947461,-995.86,0.00028071,2]
[311336598,1705063947472,-652.82,0.00028071,2]
[311336599,1705063947483,-6343.23,0.00028071,2]
[311336600,1705063947494,-1936.38,0.00028071,2]
[311336601,1705063947504,-538.63,0.00028071,2]
[311336602,1705063947515,-530.12,0.00028071,2]
[311336603,1705063947526,-905.93,0.00028071,2]
[311336604,1705063947538,-500.0,0.00028071,2]
[311336605,1705063947550,-1330.98,0.00028071,2]
[311336606,1705063947561,-584.23,0.00028071,2]
[311336607,1705063947573,-1834.87,0.00028071,2]
[311336608,1705063947584,-2275.08,0.00028071,2]
[311336609,1705063947596,-3572.07,0.00028071,2]
[311336610,1705063947607,-558.34,0.00028071,2]
[311336611,1705063947618,-1688.4,0.00028071,2]
[311336612,1705063947628,-1346.26,0.00028071,2]
[311336613,1705063947640,-1004.34,0.00028071,2]
[311336614,1705063947650,-598.68,0.00028071,2]
[311336615,1705063947669,-929.29,0.00028071,2]
[311336616,1705063947681,-1187.5,0.00028071,2]
[311336617,1705063947693,-937.32,0.00028071,2]
[311336618,1705063947705,-507.51,0.00028071,2]
[311336619,1705063947718,-753.23,0.00028071,2]
[311336620,1705063947730,-522.02,0.00028072,2]
[311336621,1705063947742,-2353.43,0.00028072,2]
[311336622,1705063947754,-762.84,0.00028072,2]
[311336623,1705063947766,-759.51,0.00028072,2]
[311336624,1705063947777,-500.0,0.00028072,2]
[311336625,1705063947789,-636.75964338,0.00028072,2]
[311336626,1705063947804,-538.07,0.00028072,2]
[311336627,1705063947815,-654.77,0.00028072,2]
[311336628,1705063947826,-500.0,0.00028072,2]
[311336629,1705063947837,-500.0,0.00028072,2]
[311336630,1705063947849,-2642.46,0.00028072,2]
[311336631,1705063947860,-535.86,0.00028072,2]
[311336632,1705063947871,-950.9,0.00028072,2]
[311336633,1705063947883,-536.71,0.00028072,2]
[311336634,1705063947894,-500.0,0.00028072,2]
[311336635,1705063947905,-693.32,0.00028072,2]
[311336636,1705063947917,-568.04,0.00028072,2]
[311336637,1705063947928,-500.0,0.00028072,2]
[311336638,1705063947939,-463.29678753,0.00028072,2]
[311336639,1705063947949,-615.43666951,0.00028072,2]
[311336640,1705063947960,-603.25,0.00028072,2]